bitfinex/quotes_SOLUSD_20250829
["timestamp","ask_amount","ask_price","bid_price","bid_amount"]
[1756490053568,0.67,203.43,203.42,40.48]
[1756490053779,12.03862902,203.43,203.37,11.36862902]
[1756490053949,0.06,203.47,203.32,5.5783553]
[1756490053950,11.36862902,203.41,203.32,5.5783553]
[1756490054150,11.36862902,203.38,203.33,40.46]
[1756490054368,16.28603367,203.36,203.33,40.46]
[1756490054556,11.36862902,203.35,203.33,40.46]
[1756490054759,12.03862902,203.34,203.25,0.03]
[1756490054967,11.36862902,203.32,203.26,51.88862902]
[1756490055168,11.36862902,203.31,203.26,40.52]
[1756490055552,0.67,203.34,203.25,0.03]
[1756490055553,12.03862902,203.3,203.25,0.03]
[1756490055876,0.67,203.29,203.26,40.52]
[1756490056179,11.36862902,203.28,203.25,0.03]
[1756490056376,13.59559401,203.35,203.25,0.03]
[1756490056553,11.36862902,203.31,203.25,11.39862902]
[1756490057178,11.36862902,203.3,203.25,0.03]
[1756490057396,0.67,203.32,203.25,0.03]
[1756490057691,11.36862902,203.29,203.25,0.03]
[1756490058187,11.36862902,203.28,203.25,0.03]
[1756490059387,0.67,203.27,203.25,0.03]
[1756490059572,12.03862902,203.27,203.25,0.03]
[1756490059772,38.03862902,203.26,203.25,0.03]
[1756490060376,0.67,203.26,203.25,0.03]
[1756490060560,11.36862902,203.28,203.25,0.03]
[1756490060956,0.67,203.34,203.26,0.66]
[1756490061265,11.36862902,203.32,203.27,4.91956511]
[1756490061453,0.67,203.34,203.28,12.02862902]
[1756490061454,11.36862902,203.34,203.28,12.02862902]
[1756490062077,11.36862902,203.36,203.3,11.36862902]
[1756490062652,0.67,203.37,203.31,11.36862902]
[1756490062653,11.36862902,203.37,203.31,11.36862902]
[1756490062859,5.58643748,203.4,203.29,13.59559401]
[1756490062860,11.36862902,203.39,203.33,11.36862902]
[1756490063085,11.36862902,203.38,203.33,11.36862902]
[1756490063281,11.36862902,203.36,203.31,51.94862902]
[1756490063495,11.36862902,203.36,203.31,56.86709362]
[1756490063665,0.67,203.37,203.29,12.02862902]
[1756490063666,11.36862902,203.35,203.29,12.02862902]
[1756490063864,11.36862902,203.34,203.28,56.90771281]
[1756490065199,11.36862902,203.35,203.29,11.36862902]
[1756490065369,0.67,203.38,203.31,11.36862902]
[1756490065575,12.03862902,203.38,203.32,11.36862902]
[1756490065970,12.03862902,203.38,203.3,0.66]
[1756490065971,11.36862902,203.37,203.3,0.66]
[1756490066273,11.36862902,203.36,203.3,11.36862902]
[1756490066886,11.36862902,203.36,203.3,16.28730072]
[1756490067082,11.36862902,203.36,203.3,11.36862902]
[1756490067083,16.28603686,203.36,203.3,11.36862902]
[1756490067276,11.36862902,203.35,203.29,45.51904595]
[1756490067481,0.67,203.36,203.29,56.88767497]
[1756490067752,11.36862902,203.3,203.25,0.03]
[1756490068477,11.36862902,203.4,203.31,0.14216157]
[1756490068681,11.36862902,203.4,203.34,11.36862902]
[1756490068880,11.36862902,203.4,203.34,16.28632625]
[1756490069083,0.67,203.41,203.34,16.28632625]
[1756490069266,12.03862902,203.41,203.35,11.36862902]
[1756490070279,0.67,203.41,203.36,11.36862902]
[1756490070599,11.36862902,203.44,203.38,11.36862902]
[1756490071006,11.36862902,203.44,203.38,16.28549246]
[1756490071515,0.06,203.46,203.42,11.36862902]
[1756490071704,0.06,203.46,203.43,11.36862902]
[1756490072527,12.09862902,203.46,203.39,13.73775558]
[1756490072698,12.09862902,203.46,203.38,5.60686344]
[1756490072699,0.73,203.46,203.38,5.60686344]
[1756490073026,11.36862902,203.44,203.38,16.28547597]
[1756490073318,11.36862902,203.45,203.39,11.36862902]
[1756490075123,5.64506096,203.46,203.39,11.36862902]
[1756490075428,0.06,203.46,203.41,11.36862902]
[1756490075632,0.06,203.46,203.37,40.78]
[1756490075633,11.36862902,203.42,203.34,0.83216157]
[1756490075916,11.36862902,203.41,203.34,31.60782882]
[1756490076107,11.36862902,203.41,203.35,11.36862902]
[1756490076520,11.36862902,203.42,203.36,11.36862902]
[1756490076719,0.67,203.44,203.36,11.36862902]
[1756490076927,5.58561622,203.44,203.36,16.28580352]
[1756490077222,11.36862902,203.42,203.36,16.28580352]
[1756490079922,16.28462038,203.42,203.36,11.36862902]
[1756490080122,26.0,203.45,203.34,0.69]
[1756490080123,11.36862902,203.41,203.34,5.60764007]
[1756490080299,11.36862902,203.4,203.34,16.97626909]
[1756490080501,12.03862902,203.39,203.32,11.36862902]
[1756490080805,11.36862902,203.36,203.31,0.69]
[1756490081004,11.36862902,203.36,203.3,52.02862902]
[1756490081005,11.36862902,203.36,203.32,0.69]
[1756490081425,11.36862902,203.36,203.3,52.71862902]
[1756490081722,11.36862902,203.35,203.3,41.35]
[1756490082316,4.91758985,203.36,203.3,41.35]
[1756490082627,11.36862902,203.35,203.3,46.26878713]
[1756490083016,11.36862902,203.35,203.3,5.60878713]
[1756490083219,4.91717866,203.37,203.28,40.64]
[1756490083220,11.36862902,203.34,203.28,11.36862902]
[1756490083524,11.36862902,203.34,203.29,0.69]
[1756490083727,11.36862902,203.38,203.32,11.36862902]
[1756490083918,11.36862902,203.39,203.33,12.05862902]
[1756490084111,11.36862902,203.43,203.37,11.36862902]
[1756490084315,12.098629,203.46,203.4,11.36862902]
[1756490084510,11.42862902,203.46,203.4,12.05862902]
[1756490084707,11.36862902,203.45,203.4,0.69]
[1756490084918,11.36862902,203.45,203.39,11.36862902]
[1756490085117,11.36862902,203.44,203.38,57.6554812]
[1756490085920,11.36862902,203.44,203.38,41.37]
[1756490086126,11.36862902,203.43,203.38,40.68]
[1756490086429,16.28435718,203.43,203.38,40.68]
[1756490086620,12.03862902,203.43,203.38,40.68]
[1756490086819,11.36862902,203.43,203.39,0.69]
[1756490087021,11.36862902,203.44,203.39,0.69]
[1756490087738,11.36862902,203.45,203.39,11.36862902]
[1756490087922,5.64502024,203.46,203.4,12.05862902]
[1756490087923,17.01364926,203.46,203.4,12.05862902]
[1756490089232,11.36862902,203.43,203.38,56.96550732]
[1756490089531,12.03862902,203.43,203.38,56.96550732]
[1756490089736,11.36862902,203.43,203.39,0.69]
[1756490090515,26.0,203.45,203.39,5.60650998]
[1756490090718,11.36862902,203.44,203.39,0.69]
[1756490091313,12.03862902,203.44,203.39,0.69]
[1756490091536,11.36862902,203.43,203.38,11.36862902]
[1756490091737,11.36862902,203.43,203.38,12.05862902]
[1756490092327,12.03862902,203.44,203.38,16.97551604]
[1756490092526,37.36862902,203.45,203.39,11.36862902]
[1756490092922,37.36862902,203.45,203.38,5.63688702]
[1756490093122,11.42862902,203.44,203.38,17.00551604]
[1756490093739,0.06,203.44,203.42,11.36862902]
[1756490093928,0.06,203.44,203.43,0.69]
[1756490094117,0.06,203.44,203.43,12.05862902]
[1756490094312,0.06,203.44,203.43,0.69]
[1756490094536,0.06,203.44,203.43,16.97432483]
[1756490094837,0.06,203.44,203.43,5.60569581]
[1756490095317,0.06,203.44,203.43,16.97432483]
[1756490096416,0.06,203.44,203.43,0.69]
[1756490097032,0.06,203.44,203.43,12.05862902]
[1756490097339,0.06,203.44,203.43,16.97432483]
[1756490097522,0.06,203.44,203.43,5.60569581]
[1756490097722,0.06,203.44,203.43,16.97432483]
[1756490098445,0.06,203.44,203.42,56.74444197]
[1756490098860,0.06,203.44,203.42,57.43444197]
[1756490099029,0.06,203.44,203.43,12.05862902]
[1756490099753,0.06,203.44,203.42,56.74444197]
[1756490100047,0.06,203.44,203.42,11.36862902]
[1756490100350,12.09862902,203.44,203.4,40.38]
[1756490100520,0.06,203.44,203.41,0.69]
[1756490100723,0.06,203.44,203.42,0.69]
[1756490101062,0.06,203.44,203.43,11.36862902]
[1756490101260,0.06,203.44,203.43,12.05862902]
[1756490102246,0.06,203.44,203.43,16.97432483]
[1756490103240,0.06,203.44,203.43,5.60569581]
[1756490103434,0.06,203.44,203.43,57.33432483]
[1756490103631,0.06,203.46,203.45,39.59559401]
[1756490103834,0.06,203.49,203.48,39.59559401]
[1756490104040,0.06,203.49,203.48,91.4863846]
[1756490104241,0.06,203.49,203.48,97.09087251]
[1756490105150,1e-08,203.49,203.48,97.09087251]
[1756490105452,0.2,203.6,203.54,0.14216157]
[1756490105748,0.2,203.6,203.59,11.36862902]
[1756490105946,0.2,203.6,203.59,51.76862902]
[1756490106449,0.2,203.6,203.59,56.68046162]
[1756490106826,0.2,203.6,203.59,45.3118326]
[1756490107151,0.2,203.6,203.59,51.76862902]
[1756490107346,0.2,203.6,203.59,56.68046162]
[1756490107547,0.2,203.6,203.59,57.37046162]
[1756490108138,0.2,203.6,203.59,57.33046162]
[1756490108650,0.2,203.6,203.59,40.34]
[1756490109042,0.2,203.6,203.59,51.70862902]
[1756490109247,0.2,203.6,203.59,52.39862902]
[1756490109438,0.2,203.6,203.59,51.70862902]
[1756490109626,0.2,203.6,203.59,52.39862902]
[1756490109828,0.2,203.6,203.53,11.36862902]
[1756490109829,17.16023437,203.6,203.53,11.36862902]
[1756490110051,11.36862902,203.54,203.48,0.69]
[1756490110255,11.36862902,203.54,203.49,40.36]
[1756490110762,11.36862902,203.54,203.49,0.69]
[1756490110956,11.36862902,203.52,203.46,90.96862902]
[1756490111269,11.36862902,203.53,203.47,40.38]
[1756490111559,0.68,203.55,203.47,40.38]
[1756490111560,0.68,203.55,203.49,11.36862902]
[1756490111729,11.36862902,203.56,203.5,51.76862902]
[1756490112132,12.04862902,203.55,203.5,40.4]
[1756490112359,12.04862902,203.54,203.5,40.4]
[1756490112959,12.04862902,203.53,203.51,40.44]
[1756490113149,12.04862902,203.53,203.47,29.87883817]
[1756490113150,12.04862902,203.53,203.5,40.42]
[1756490113734,11.36862902,203.51,203.5,40.42]
[1756490113956,11.36862902,203.51,203.49,40.4]
[1756490114155,0.68,203.52,203.49,40.4]
[1756490114156,12.04862902,203.52,203.49,40.4]
[1756490114658,16.96218269,203.52,203.49,40.4]
[1756490114858,11.36862902,203.51,203.45,12.05862902]
[1756490115063,11.36862902,203.51,203.46,40.38]
[1756490115263,11.36862902,203.51,203.46,41.07]
[1756490115445,11.36862902,203.51,203.46,40.38]
[1756490115649,11.36862902,203.48,203.46,40.38]
[1756490115839,11.36862902,203.48,203.43,26.69]
[1756490115840,11.36862902,203.48,203.43,31.60565075]
[1756490116036,11.36862902,203.48,203.44,40.38]
[1756490116436,11.36862902,203.48,203.44,41.07]
[1756490116649,11.36862902,203.48,203.44,40.38]
[1756490117260,11.36862902,203.49,203.44,45.98544756]
[1756490117458,11.36862902,203.49,203.44,41.07]
[1756490117873,11.36862902,203.48,203.44,41.07]
[1756490119768,4.91328059,203.53,203.45,0.69]
[1756490119974,11.36862902,203.49,203.45,0.69]
[1756490120603,0.68,203.53,203.46,0.69]
[1756490120757,11.36862902,203.54,203.48,11.36862902]
[1756490120957,11.36862902,203.54,203.49,0.69]
[1756490121193,11.36862902,203.54,203.5,40.97]
[1756490121394,11.36862902,203.55,203.5,40.97]
[1756490121687,12.04862902,203.55,203.5,40.97]
[1756490121857,0.68,203.55,203.5,45.88399134]
[1756490122058,16.28121838,203.56,203.5,40.97]
[1756490122253,11.36862902,203.53,203.5,40.28]
[1756490122484,11.36862902,203.54,203.5,40.28]
[1756490122692,11.36862902,203.54,203.5,40.97]
[1756490122889,4.91258936,203.56,203.5,0.69]
[1756490123191,11.36862902,203.55,203.51,40.28]
[1756490124592,11.36862902,203.56,203.52,0.69]
[1756490124770,30.91236249,203.57,203.53,0.69]
[1756490124771,11.36862902,203.57,203.53,0.69]
[1756490125677,5.79179018,203.6,203.54,40.93]
[1756490125994,5.79179018,203.6,203.55,0.69]
[1756490125995,16.48030997,203.6,203.55,0.69]
[1756490126160,17.16030997,203.6,203.54,51.60862902]
[1756490127569,0.2,203.6,203.55,12.05862902]
[1756490127781,5.11167662,203.6,203.56,0.69]
[1756490127978,5.11167662,203.6,203.57,40.2]
[1756490129296,0.2,203.6,203.57,40.2]
[1756490129479,5.11170364,203.6,203.57,40.2]
[1756490130586,11.36862902,203.58,203.54,40.14]
[1756490130791,11.36862902,203.56,203.53,40.16]
[1756490131496,11.36862902,203.57,203.53,40.16]
[1756490131701,11.56862902,203.6,203.54,12.06862902]
[1756490131890,11.56862902,203.6,203.55,0.7]
[1756490132094,11.56862902,203.6,203.56,0.7]
[1756490132095,0.2,203.6,203.56,0.7]
[1756490132297,0.2,203.6,203.57,0.7]
[1756490132507,0.2,203.6,203.57,40.84]
[1756490133014,0.2,203.6,203.58,0.7]
[1756490133512,0.2,203.6,203.57,40.14]
[1756490133711,0.2,203.6,203.57,40.84]
[1756490133879,0.2,203.6,203.58,0.7]
[1756490134280,0.2,203.6,203.58,40.82]
[1756490135012,0.2,203.6,203.58,40.12]
[1756490135617,17.14027224,203.6,203.58,40.1]
[1756490135783,16.48027224,203.6,203.58,40.1]
[1756490135985,5.11164322,203.6,203.58,40.1]
[1756490136319,0.2,203.6,203.58,40.8]
[1756490136625,0.2,203.6,203.59,0.7]
[1756490136921,0.2,203.6,203.58,40.1]
[1756490138121,16.48027337,203.6,203.58,40.1]
[1756490138420,17.14027337,203.6,203.54,11.36862902]
[1756490138612,17.14027337,203.6,203.55,40.78]
[1756490138613,5.11164435,203.6,203.55,40.78]
[1756490138782,0.2,203.6,203.56,0.7]
[1756490138987,0.2,203.6,203.57,0.7]
[1756490140213,0.2,203.6,203.55,16.9813651]
[1756490140411,0.2,203.6,203.57,0.7]
[1756490141007,0.2,203.6,203.58,12.06862902]
[1756490141214,0.2,203.6,203.59,51.42862902]
[1756490141522,0.2,203.6,203.59,47.86446765]
[1756490143123,0.2,203.6,203.59,45.6718326]
[1756490143319,0.2,203.6,203.59,40.76]
[1756490143920,0.2,203.6,203.59,40.06]
[1756490146235,0.2,203.6,203.57,84.51224321]
[1756490146401,11.36833466,203.59,203.54,0.7]
[1756490146605,11.36833466,203.59,203.55,40.76]
[1756490146913,11.36833466,203.59,203.56,40.06]
[1756490147606,0.2,203.6,203.56,40.76]
[1756490147806,0.2,203.6,203.57,0.7]
[1756490148108,0.2,203.6,203.58,40.76]
[1756490148522,0.2,203.6,203.58,40.06]
[1756490148714,11.56833466,203.6,203.58,40.06]
[1756490148919,11.36833466,203.59,203.58,40.06]
[1756490149115,11.36833466,203.59,203.56,0.7]
[1756490149330,11.36833466,203.59,203.57,40.06]
[1756490150028,0.2,203.6,203.57,40.76]
[1756490150511,0.2,203.6,203.58,0.7]
[1756490150834,0.2,203.6,203.59,12.06833466]
[1756490151203,0.2,203.6,203.59,25.80609024]
[1756490151410,0.2,203.6,203.59,12.06833466]
[1756490152920,0.2,203.6,203.59,16.98016726]
[1756490153811,0.2,203.6,203.59,30.71792284]
[1756490154111,0.2,203.6,203.59,59.40958818]
[1756490154315,0.2,203.6,203.59,57.04016726]
[1756490154817,0.2,203.6,203.59,70.77792284]
[1756490155218,0.2,203.6,203.59,57.04016726]
[1756490155414,0.2,203.6,203.59,70.77792284]
[1756490156532,0.2,203.6,203.59,71.2691061]
[1756490157130,0.2,203.6,203.59,45.34958818]
[1756490157535,0.2,203.6,203.59,56.71792284]
[1756490157717,0.2,203.6,203.59,96.75792284]
[1756490158315,12.22833466,203.6,203.53,0.7]
[1756490158518,11.36833466,203.59,203.54,40.04]
[1756490158922,11.36833466,203.59,203.54,45.65285404]
[1756490159121,0.66,203.59,203.54,45.65285404]
[1756490159431,0.2,203.6,203.55,12.06833466]
[1756490159745,0.2,203.6,203.56,40.04]
[1756490160416,0.2,203.6,203.57,40.04]
[1756490162151,0.2,203.6,203.59,25.10609024]
[1756490162333,0.2,203.6,203.59,65.14609024]
[1756490162534,0.2,203.6,203.59,54.49775558]
[1756490162733,0.2,203.6,203.59,65.86609024]
[1756490163545,0.2,203.6,203.59,150.37792284]
[1756490164536,1e-08,203.6,203.59,150.37792284]
[1756490165421,0.06,203.63,203.62,26.0]
[1756490165623,0.06,203.63,203.62,44.6488645]
[1756490165927,0.06,203.63,203.62,92.5080882]
[1756490166331,1e-08,203.63,203.62,92.99919909]
[1756490166531,1e-08,203.63,203.62,172.59919909]
[1756490166822,1e-08,203.63,203.62,172.1080882]
[1756490167030,1e-08,203.63,203.62,164.2888645]
[1756490167249,1e-08,203.63,203.62,172.1080882]
[1756490167550,1e-08,203.63,203.62,110.51110892]
[1756490167747,1e-08,203.63,203.61,12.01053339]
[1756490167927,1e-08,203.63,203.62,40.04]
[1756490168543,1e-08,203.63,203.62,47.1392237]
[1756490168949,1e-08,203.63,203.62,47.8592237]
[1756490169453,1e-08,203.63,203.62,61.59697928]
[1756490169640,1e-08,203.63,203.62,66.5080882]
[1756490170030,1e-08,203.63,203.62,146.1080882]
[1756490170337,1e-08,203.65,203.64,39.73775558]
[1756490170541,1e-08,203.65,203.64,86.87697928]
[1756490170865,0.06,203.71,203.69,13.59559401]
[1756490171035,0.06,203.71,203.7,47.1392237]
[1756490171352,0.06,203.71,203.7,61.59697928]
[1756490171561,0.2,203.76,203.7,68.69620298]
[1756490171859,0.2,203.76,203.72,51.74567749]
[1756490172154,0.2,203.76,203.72,91.78567749]
[1756490172457,0.2,203.76,203.72,92.50567749]
[1756490172751,0.66,203.75,203.72,40.04]
[1756490173438,0.2,203.76,203.71,11.35383744]
[1756490173750,12.21383744,203.76,203.72,40.04]
[1756490174054,0.86,203.76,203.72,56.30253565]
[1756490174853,0.66,203.75,203.72,40.04]
[1756490175057,0.2,203.76,203.72,51.39383744]
[1756490175242,0.2,203.76,203.72,56.30253565]
[1756490176752,0.66,203.75,203.72,11.35383744]
[1756490177056,0.66,203.75,203.72,61.19908915]
[1756490181736,0.2,203.76,203.72,61.19908915]
[1756490183040,0.2,203.76,203.72,56.29039094]
[1756490183537,0.86,203.76,203.72,56.29039094]
[1756490185634,0.86,203.76,203.72,44.9365535]
[1756490185831,0.86,203.76,203.72,56.29039094]
[1756490186559,11.35383744,203.74,203.71,0.03]
[1756490186746,12.01383744,203.72,203.71,0.03]
[1756490187756,16.92253565,203.72,203.71,0.03]
[1756490188962,5.56869821,203.72,203.71,40.03]
[1756490189560,16.92253565,203.72,203.71,40.03]
[1756490189862,16.92253565,203.72,203.71,0.03]
[1756490190958,5.56869821,203.72,203.71,0.03]
[1756490192166,0.06,203.73,203.71,12.07383744]
[1756490192462,0.06,203.73,203.72,65.78159302]
[1756490193442,0.06,203.73,203.72,61.52125614]
[1756490194375,0.06,203.73,203.72,66.42995435]
[1756490195173,0.06,203.73,203.72,92.92082417]
[1756490195387,0.2,203.76,203.75,26.0]
[1756490195575,0.2,203.76,203.75,73.09350056]
[1756490195750,0.2,203.76,203.75,73.78350056]
[1756490196563,0.2,203.76,203.75,92.4292316]
[1756490198954,0.2,203.76,203.75,52.4292316]
[1756490199165,0.2,203.76,203.75,92.4292316]
[1756490199776,0.2,203.76,203.75,52.4292316]
[1756490200070,0.2,203.76,203.75,66.26707003]
[1756490200383,0.2,203.76,203.75,65.7192316]
[1756490200888,0.2,203.76,203.75,66.4092316]
[1756490201489,0.2,203.76,203.75,65.7192316]
[1756490202970,0.2,203.76,203.75,146.0092316]
[1756490203658,0.2,203.76,203.75,138.91573104]
[1756490203862,0.2,203.76,203.75,146.0092316]
[1756490204679,0.2,203.76,203.75,145.3192316]
[1756490204865,0.2,203.76,203.75,98.24573104]
[1756490205191,0.2,203.76,203.75,145.3192316]
[1756490207384,0.2,203.76,203.75,146.0092316]
[1756490208993,0.2,203.76,203.75,65.7192316]
[1756490210572,0.86,203.76,203.71,79.63]
[1756490210779,0.66,203.75,203.72,39.96]
[1756490210976,0.66,203.75,203.71,91.63238547]
[1756490211186,0.66,203.75,203.72,47.05350056]
[1756490211386,0.2,203.76,203.73,7.09350056]
[1756490211587,0.86,203.76,203.74,39.96]
[1756490211791,0.86,203.76,203.71,7.12350056]
[1756490211792,0.66,203.75,203.71,7.12350056]
[1756490212008,0.66,203.74,203.72,39.96]
[1756490212305,0.2,203.76,203.72,47.05350056]
[1756490212306,0.86,203.76,203.72,47.05350056]
[1756490212485,0.66,203.75,203.72,47.05350056]
[1756490212685,0.66,203.75,203.72,51.96213854]
[1756490213473,0.66,203.75,203.72,44.86863798]
[1756490213673,7.75350056,203.75,203.72,44.86863798]
[1756490214590,7.75350056,203.75,203.72,39.96]
[1756490214791,0.66,203.74,203.72,39.96]
[1756490215178,7.09350056,203.75,203.72,39.96]
[1756490215391,7.75350056,203.75,203.72,39.96]
[1756490215595,7.75350056,203.75,203.71,0.03]
[1756490215776,7.75350056,203.75,203.72,39.96]
[1756490216796,7.09350056,203.73,203.71,0.03]
[1756490216991,7.75350056,203.72,203.71,0.03]
[1756490217187,7.09350056,203.72,203.71,39.99]
[1756490217500,0.86,203.76,203.71,39.99]
[1756490217676,7.09350056,203.74,203.71,39.99]
[1756490217870,7.75350056,203.73,203.71,39.99]
[1756490218275,7.09350056,203.74,203.72,0.03]
[1756490218485,7.75350056,203.74,203.73,39.96]
[1756490219893,7.09350056,203.74,203.73,39.96]
[1756490220589,7.75350056,203.74,203.73,39.96]
[1756490222081,12.66171691,203.74,203.73,39.96]
[1756490223106,7.75350056,203.74,203.73,39.96]
[1756490223274,12.66171691,203.74,203.72,0.03]
[1756490223607,7.09350056,203.73,203.72,0.03]
[1756490223778,7.79350056,203.73,203.72,0.03]
[1756490224197,12.70195783,203.73,203.72,0.03]
[1756490224809,23.9197589,203.73,203.71,0.03]
[1756490225016,23.9197589,203.73,203.68,0.03]
[1756490225017,13.59559401,203.69,203.68,0.03]
[1756490225300,20.83125614,203.68,203.58,0.9]
[1756490225507,26.0,203.64,203.58,0.9]
[1756490225717,7.09350056,203.59,203.56,5.52121506]
[1756490225897,7.09350056,203.59,203.56,39.00121506]
[1756490226095,11.21417206,203.68,203.57,14.41775558]
[1756490226296,26.0,203.69,203.62,7.09350056]
[1756490226483,26.0,203.69,203.57,13.73775558]
[1756490226484,7.09350056,203.69,203.63,47.71350056]
[1756490226688,7.09350056,203.66,203.64,39.94]
[1756490226885,7.79350056,203.65,203.59,0.68]
[1756490227103,7.09350056,203.61,203.59,39.94]
[1756490228109,7.09350056,203.6,203.56,9.75357688]
[1756490228410,7.09350056,203.6,203.58,39.94]
[1756490228985,7.09350056,203.6,203.56,9.75357688]
[1756490229316,7.09350056,203.59,203.56,44.78121506]
[1756490229811,7.09350056,203.59,203.56,5.52121506]
[1756490230111,7.09350056,203.59,203.56,45.46121506]
[1756490231288,7.09350056,203.59,203.38,24.82720486]
[1756490231289,7.09350056,203.57,203.51,0.03]
[1756490231504,0.7,203.58,203.51,0.03]
[1756490231505,7.09350056,203.52,203.51,0.03]
[1756490231704,7.79350056,203.52,203.51,0.03]
[1756490233211,0.7,203.52,203.51,0.03]
[1756490233405,7.09350056,203.52,203.51,0.03]
[1756490233612,7.79350056,203.52,203.51,0.03]
[1756490233918,26.0,203.56,203.51,7.80350056]
[1756490234109,33.09350056,203.56,203.52,0.68]
[1756490234419,7.09350056,203.56,203.52,0.68]
[1756490234720,7.09350056,203.56,203.51,0.03]
[1756490235014,7.09350056,203.56,203.52,0.68]
[1756490235426,11.37734087,203.54,203.51,0.03]
[1756490235600,4.91244536,203.57,203.51,0.03]
[1756490235601,11.37734087,203.52,203.51,0.03]
[1756490236217,12.07734087,203.52,203.51,0.03]
[1756490236922,16.99086288,203.52,203.51,0.03]
[1756490237913,11.37734087,203.52,203.51,0.03]
[1756490239120,16.29086288,203.52,203.51,0.03]
[1756490239403,16.99086288,203.52,203.51,0.03]
[1756490239828,11.37734087,203.52,203.51,0.03]
[1756490241524,12.07734087,203.52,203.51,0.03]
[1756490242217,11.37734087,203.52,203.51,0.03]
[1756490242624,11.37734087,203.57,203.51,12.08734087]
[1756490243639,11.37734087,203.56,203.51,5.62368635]
[1756490243836,11.37734087,203.56,203.52,0.68]
[1756490244219,11.37734087,203.53,203.51,0.03]
[1756490244835,44.87232859,203.57,203.52,0.68]
[1756490244836,11.37734087,203.57,203.52,0.68]
[1756490245036,11.37734087,203.57,203.53,0.68]
[1756490245238,11.37734087,203.58,203.53,5.59317651]
[1756490245437,11.37734087,203.61,203.55,11.37734087]
[1756490246436,11.37734087,203.61,203.56,0.68]
[1756490246742,11.37734087,203.59,203.54,11.37734087]
[1756490246922,4.91141271,203.61,203.51,0.03]
[1756490246923,11.37734087,203.55,203.51,0.03]
[1756490247455,11.37734087,203.52,203.51,0.03]
[1756490247821,12.07734087,203.52,203.51,0.03]
[1756490248019,23.45468174,203.52,203.51,0.03]
[1756490248438,26.0,203.49,203.48,0.03]
[1756490248640,26.0,203.49,203.46,0.03]
[1756490248641,37.37734087,203.49,203.46,0.03]
[1756490248847,11.37734087,203.47,203.46,0.03]
[1756490249331,37.37734087,203.47,203.46,0.03]
[1756490249814,38.07734087,203.47,203.46,0.03]
[1756490250438,37.37734087,203.47,203.46,0.03]
[1756490251032,11.37734087,203.48,203.46,0.03]
[1756490251545,11.37734087,203.48,203.46,0.72]
[1756490251923,11.37734087,203.49,203.46,0.03]
[1756490252162,1.970492,203.58,203.47,12.06734087]
[1756490252163,40.68,203.57,203.47,12.06734087]
[1756490252330,11.37734087,203.51,203.47,0.69]
[1756490252524,11.37734087,203.5,203.47,0.69]
[1756490252744,11.37734087,203.49,203.47,0.69]
[1756490252951,11.37734087,203.48,203.46,0.03]
[1756490253140,4.91231517,203.57,203.46,16.32222595]
[1756490253461,11.37734087,203.53,203.47,12.06734087]
[1756490253630,4.91231517,203.57,203.48,12.06734087]
[1756490253631,11.37734087,203.54,203.48,12.06734087]
[1756490253959,11.37734087,203.54,203.49,0.69]
[1756490254142,11.37734087,203.53,203.5,0.69]
[1756490254538,11.37734087,203.54,203.5,0.69]
[1756490254747,11.37734087,203.54,203.51,0.69]
[1756490254927,11.37734087,203.55,203.51,0.69]
[1756490255485,11.37734087,203.55,203.52,0.69]
[1756490255662,26.0,203.57,203.53,0.69]
[1756490255846,11.37734087,203.56,203.53,0.69]
[1756490256052,26.0,203.57,203.51,11.37734087]
[1756490256360,11.37734087,203.57,203.51,11.37734087]
[1756490256565,11.37734087,203.56,203.52,4.91352201]